Cogmind - Beta 10.2 @@@ ROGUE MODE // 2020.11.25 @ 08:59:10 Player: Isabelle Result: Self-destructed Performance ------------- Evolutions (1) 500 Regions Visited (2) 400 Robots Destroyed (8) 40 Value Destroyed (303) 303 Prototype IDs (0) 0 Alien Tech Used (0) 0 Bonus (0) 0 TOTAL SCORE: 1243 Bonus ------- None Cogmind --------- Core Integrity 197/400 Matter 270/300 Energy 265/265 System Corruption 0% Temperature Cool (292) Movement Walking (180) Ox2 Location -9/Materials Parts ------- > --- POWER (3) -------- Improved Ion Engine > --- PROPULSION (2) --- Aluminum Leg > --- UTILITY (2) ------ Large Storage Unit Hardened Light Armor Plating > --- WEAPON (2) ------- (None) > --- INVENTORY (10) --- Small Storage Unit Propulsion Shielding Peak State ------------ > --- POWER ------------ Improved Ion Engine Improved Ion Engine > --- PROPULSION ------- Aluminum Leg Hover Unit > --- UTILITY ---------- Large Storage Unit Core Shielding > --- WEAPON ----------- EM Pulse Gun Katana > --- INVENTORY -------- Small Storage Unit Propulsion Shielding Light Cannon Mining Laser Welding Torch [Rating: 12] Favorites ----------- Power Light Ion Engine Engine Light Ion Engine Propulsion Light Treads Treads Light Treads Leg Aluminum Leg Hover Unit Hover Unit Utility Large Storage Unit Storage Large Storage Unit Protection Core Shielding Weapon EM Pulse Gun Energy Gun EM Pulse Gun Ballistic Cannon Light Cannon Special Weapon Mining Laser Slashing Weapon Katana Build | -11 -10 -9 ------- Run | Scr Mat Mat Slots Evolved 2 | . . 2 Power 2 | . . 2 Propulsion . | . . . Utility . | . . . Weapon . | . . . Parts Attached 21 | 5 2 14 Power 5 | 1 . 4 Engine 5 | 1 . 4 Core . | . . . Reactor . | . . . Propulsion 4 | 2 . 2 Treads 2 | 2 . . Leg 1 | . . 1 Wheel . | . . . Hover 1 | . . 1 Flight . | . . . Utility 5 | 1 2 2 Device . | . . . Storage 2 | 1 1 . Processor . | . . . Hackware . | . . . Protection 3 | . 1 2 Artifact . | . . . Weapon 7 | 1 . 6 Energy Gun 2 | 1 . 1 Energy Cannon . | . . . Ballistic Gun . | . . . Ballistic Cannon 2 | . . 2 Launcher . | . . . Special Weapon 2 | . . 2 Impact Weapon . | . . . Slashing Weapon 1 | . . 1 Piercing Weapon . | . . . Special Melee Weapon . | . . . Unidentified Prototypes . | . . . Parts Lost 9 | . . 9 Power 3 | . . 3 Propulsion 1 | . . 1 Utility . | . . . Weapon 5 | . . 5 Highest Loss Streak 4 | . . 4 Average Slot Usage (%) 73 | . 78 71 Engine 16 | . 14 17 Treads 14 | . 28 9 Leg 2 | . . 3 Hover 1 | . . 1 Storage 12 | . 16 11 Protection 9 | . 5 11 Energy Gun 7 | . 14 4 Ballistic Cannon 3 | . . 4 Slashing Weapon 4 | . . 6 Naked Turns . | . . . Heaviest Build 36 | 9 25 36 Greatest Support 40 | 40 40 40 Greatest Overweight (x) 9 | . . 9 Average Overweight (x) . | . . 1 Largest Inventory Capacity 12 | 6 12 10 Average Capacity 9 | 5 8 10 Most Carried 8 | 3 5 8 Average Carried 4 | . 2 5 Final Capacity 10 | 6 10 10 Final Carried 5 | . 5 2 Class Distribution -------------------- 87% | Mutant 12% | Scavenger-Mutant Dominant Class ---------------- Mutant | -10/Materials Mutant | -9/Materials Resources | -11 -10 -9 ----------- Run | Scr Mat Mat Matter Collected 384 | 250 . 134 Remotely . | . . . Salvage Created 410 | 97 . 313 Parts 17 | 1 . 16 Haulers Intercepted . | . . . Recyclers Shooed . | . . . Parts Field Recycled . | . . . Retrieved Matter . | . . . Parts Self-Destructed . | . . . Prevented . | . . . Kills | -11 -10 -9 ------- Run | Scr Mat Mat Combat Hostiles Destroyed 7 | . . 7 Melee 4 | . . 4 Guns 2 | . . 2 Cannons 1 | . . 1 Classes Destroyed 4 | 1 . 3 Recycler 1 | 1 . . Grunt 2 | . . 2 Duelist 2 | . . 2 Sentry 3 | . . 3 Best Kill Streak 2 | 1 . 2 Combat Bots Only 2 | . . 2 Max Kills in Single Turn 1 | 1 . 1 Gunslinging . | . . . Exploded . | . . . Melee 1 | . . 1 Uniques/NPCs Destroyed . | . . . Combat | -11 -10 -9 -------- Run | Scr Mat Mat Damage Taken 1316 | 16 109 1191 Core 251 | . 48 203 Absorbed by Shields . | . . . Core Remaining (%) 90 | 100 80 . Volleys Fired 32 | 1 . 31 Largest 1 | 1 . 1 Hottest 100 | 40 . 100 Shots Fired 32 | 1 . 31 Gun 13 | 1 . 12 Cannon 11 | . . 11 Launcher . | . . . Special 8 | . . 8 Kinetic 11 | . . 11 Thermal 8 | . . 8 Explosive . | . . . Electromagnetic 13 | 1 . 12 Robot Hit Streak 10 | 1 . 10 Robot Miss Streak 2 | . . 2 Penetration Max . | . . . Secondary Targets . | . . . Shots Hit Robots 32 | 1 . 31 Core Hits 12 | 1 . 11 Critical Hits 1 | . . 1 Critical Kills . | . . . Critical Parts Destroyed 1 | . . 1 Melee Attacks 16 | . . 16 Impact . | . . . Slashing 16 | . . 16 Piercing . | . . . Sneak Attacks . | . . . Combat Hostiles . | . . . Follow-up Attacks . | . . . Damage Inflicted 694 | 47 . 647 Guns 137 | 15 . 122 Cannons 138 | . . 138 Explosions 32 | 32 . . Melee 359 | . . 359 Ramming . | . . . Kinetic 138 | . . 138 Thermal 60 | 32 . 28 Explosive . | . . . Electromagnetic 137 | 15 . 122 Impact . | . . . Slashing 359 | . . 359 Piercing . | . . . Highest Corruption . | . . . Average Corruption . | . . . Corruption Purged . | . . . Overload Shots . | . . . Overflow Damage 6 | . . 6 Projectiles . | . . . Explosions . | . . . Melee 6 | . . 6 Knockbacks 1 | . . 1 Impact . | . . . Kinetic 1 | . . 1 Secondary . | . . . Self-Inflicted Damage 17 | 17 . . Shots 1 | 1 . . Rammed . | . . . Targets Rammed . | . . . Kicked . | . . . Crushed . | . . . Highest Temperature 334 | 12 . 334 Average Temperature 85 | 12 . 87 Received Heat Transfer 474 | . 60 414 Siege Activations . | . . . Robots Corrupted . | . . . Combat Hostiles . | . . . Parts Fried . | . . . Impact Corruptions . | . . . Robots Melted . | . . . Combat Hostiles . | . . . Parts Melted . | . . . Heat Transferred 125 | 50 . 75 Parts Sabotaged . | . . . Parts Stolen . | . . . Parts Stripped . | . . . Power Chain Reactions 1 | 1 . . Missiles Intercepted . | . . . Alert | -11 -10 -9 ------- Run | Scr Mat Mat Peak Influence 229 | 5 23 229 Initial 9 | . 3 9 Average 63 | 3 8 94 Maximum Alert Level 1 | . . 1 Low Security (%) 91 | 100 100 86 Level 1 8 | . . 13 Level 2 . | . . . Level 3 . | . . . Level 4 . | . . . Level 5 . | . . . High Security . | . . . Max Security . | . . . Squads Dispatched 1 | . 1 . Investigation . | . . . Extermination . | . . . Reinforcement 1 | . 1 . Assault . | . . . Garrison . | . . . Intercept . | . . . Construction Impeded . | . . . Haulers Reinforced . | . . . Stealth | -11 -10 -9 --------- Run | Scr Mat Mat Distress Signals 2 | . 1 1 Communications Jammed . | . . . Distress Signals . | . . . Times Spotted 20 | . 6 14 Peak Tracking Total 7 | . 5 7 Tactical Retreats 3 | . . 3 Traps | -11 -10 -9 ------- Run | Scr Mat Mat Traps Triggered . | . . . Indirectly . | . . . Trap Hack Attempts . | . . . Triggered . | . . . Disarmed . | . . . Reprogrammed . | . . . Reused . | . . . Traps Extracted . | . . . Installed . | . . . Triggered . | . . . Machines | -11 -10 -9 ---------- Run | Scr Mat Mat Machines Disabled . | . . . Max in Single Turn . | . . . Machines Sabotaged . | . . . Garrisons Compromised . | . . . Overloaded Fab Kills . | . . . Fab Network Shutdowns . | . . . Hacking | -11 -10 -9 --------- Run | Scr Mat Mat Machines Accessed 1 | . 1 . Terminals 1 | . 1 . Fabricators . | . . . Repair Stations . | . . . Recycling Units . | . . . Scanalyzers . | . . . Garrison Access . | . . . Total Hacks 2 | . 2 . Successful 2 | . 2 . Failed . | . . . Catastrophic . | . . . Database Lockouts . | . . . Manual . | . . . Terminals 2 | . 2 . Fabricators . | . . . Repair Stations . | . . . Recycling Units . | . . . Scanalyzers . | . . . Garrison Access . | . . . Terminal Hacks 2 | . 2 . Record 1 | . 1 . Zone Layout 1 | . 1 . Fabricator Hacks . | . . . Repair Station Hacks . | . . . Recycling Unit Hacks . | . . . Scanalyzer . | . . . Garrison Access Hacks . | . . . Unauthorized Hacks . | . . . Terminals . | . . . Fabricators . | . . . Repair Stations . | . . . Recycling Units . | . . . Scanalyzers . | . . . Garrison Access . | . . . Data Cores Recovered . | . . . Used . | . . . Hacking Detections . | . . . Full Trace Events . | . . . Feedback Events . | . . . Feedback Blocked . | . . . Robot Schematics Acquired . | . . . Robots Built . | . . . Matter . | . . . Time . | . . . Total Robot Build Rating . | . . . Part Schematics Acquired . | . . . Parts Built . | . . . Matter . | . . . Time . | . . . Total Part Build Rating . | . . . Parts Repaired . | . . . Time . | . . . Parts Recycled . | . . . Recycled Matter . | . . . Retrieved Matter . | . . . Retrieved Components . | . . . Parts Scanalyzed . | . . . Part Schematics Acquired . | . . . Parts Damaged . | . . . Bothacking | -11 -10 -9 ------------ Run | Scr Mat Mat Used RIF Installer . | . . . Robots Hacked . | . . . Non-combat . | . . . Combat . | . . . Robot Hacks Applied . | . . . Relay Couplers Released . | . . . Robots Rewired . | . . . Allies Hacked . | . . . Hacks Repelled . | . . . Allies | -11 -10 -9 -------- Run | Scr Mat Mat Total Allies . | . . . Largest Group . | . . . Highest-Rated Group . | . . . Highest-Rated Ally . | . . . Total Orders . | . . . Ally Attacks . | . . . Total Damage . | . . . Kills . | . . . Allies Corrupted . | . . . Allies Melted . | . . . Intel | -11 -10 -9 ------- Run | Scr Mat Mat Robot Analysis Total . | . . . Derelict Logs Recovered . | . . . Drone Launches . | . . . Drone Recoveries . | . . . Exploration | -11 -10 -9 ------------- Run | Scr Mat Mat Turns Passed 715 | 72 179 464 Spaces Moved 324 | 50 107 167 Core 19 | 17 . 2 Treads 268 | 33 107 128 Legs 37 | . . 37 Wheels . | . . . Hover . | . . . Flight . | . . . Fastest Speed 50 | 50 160 160 Average Speed 166 | 122 160 183 Slowest Speed 500 | 160 160 500 Overloaded Moves . | . . . Propulsion Burnouts . | . . . Robots Hopped . | . . . Cave-ins Triggered . | . . . Exploration Rate (%) 13 | 4 23 13 Regions Visited 2 Branch Regions . Pre-discovered Areas . | . . . Known Exits Taken . | . . . Unknown Exits Taken 2 | 1 1 . Scrap Searched . | . . . Spaces Dug 4 | . . 4 Terrain Destroyed 7 | 2 . 5 Melee . | . . . Projectile 5 | . . 5 AOE 2 | 2 . . Terrain Rammed . | . . . Walls Destroyed . | . . . Machines Disabled . | . . . Actions | -11 -10 -9 --------- Run | Scr Mat Mat Total 429 | 60 114 255 Wait 14 | . . 14 Move 322 | 49 106 167 Hop . | . . . Pick Up 20 | 5 6 9 Fast Attach . | . . . Attach 15 | 5 1 9 Detach . | . . . Swap 6 | . 1 5 Drop 4 | . . 4 Fire 32 | 1 . 31 Melee 16 | . . 16 Ram . | . . . Kick . | . . . Crush . | . . . Escape Stasis . | . . . Rewire . | . . . Trap . | . . . Miscellaneous . | . . . Route ------- -11/Scrapyard -10/Materials -9/Materials History --------- Turn | Location | Event 11 | -11/Scrapyard | Discovered new exit (range 16) 73 | -11/Scrapyard | Entered Materials 194 | -10/Materials | Discovered new exit (range 12) 252 | -10/Materials | Entered another Materials area 252 | -9/Materials | Evolved 2 slots: Power x2 301 | -9/Materials | Build established: Mutant 694 | -9/Materials | Lost 4 parts (4w) 697 | -9/Materials | Core integrity fell below 50% 716 | -9/Materials | Self-destructed Last Messages --------------- Lgt. Cannon destroyed. Welding Torch destroyed. Y-45 Defender destroyed. Acquired 16 matter. U-05 Engineer builds a Wall. Acquired Hrd. Light Armor Plating. K-01 Serf collects debris. Dropped Core Shielding. Dropped Hover Unit. K-01 Serf collects debris. U-05 Engineer lays Concrete. U-05 Engineer builds a Wall. R-06 Scavenger collects Core Shielding. U-05 Engineer builds a Wall. R-06 Scavenger collects Hover Unit. U-05 Engineer builds a Wall. U-05 Engineer destroyed. Mining Laser destroyed. Imp. Ion Engine destroyed. U-05 Engineer builds a Door. Map ----- +----------------------------------------------------+ | ?????????????????????????????????????????????????? | | ?????????????????????????????????????????????????? | | ?????????????????????????????????????????????????? | | ?????????????????????????????????????????????????? | | ?????????????????????????????????????????????????? | | ?????????????????????????????????????????????????? | | ?????????????????????????????????????????????????? | | ?????????????????????????????????????????????????? | | ?????????????????????????????????????????????????? | | ?????????????????????????????????????????????????? | | ?????????????????????????????? ????????????????? | | ?????????????????????????????# #???????????????? | | ?????????????????????????????# #???????????????? | | ?????????????????????????????# #???????????????? | | ?????????????????????????????# #???????????????? | | ?????????????????????????????# #???????????????? | | ?????????????????????????????# #???????????????? | | ????????????????????????????? #???????????????? | | ?????????????????????????????# +???????????????? | | ???????????????? ??########### #???????#######?? | | ???????????????? # """ """ # #???????# ### | | ????????????????? + """ """ # #???????# | | ???????????????????# """ """ # #???????# | | ???????????????????# g # #???????# | | ???????????????????# Y # #???????# % ### | | ???????????????????# @ !+ #?????#####+##### | | ???????????????????# |%# #?????# %%% # | | ???????????????????# # #?????# """ """ # | | ???????????????????########### ##????# """ """ # | | ??????????????????????####### #????# """ "" # | | ?????????????????? ###### # | | ?????????????????? / # | | ?????????????????? ###### # | | ??????????????????? ####### #????# + | | ???????????????????+????????###+###????########+## | | ??????????????????????????????????????????????# #? | | ??????????????????????????????????????????????# #? | | ??????????????????????????????????????????????# #? | | ??????????????????????????????????????????????# #? | | ?????????????????????????????????????????????## ## | | ?????????????????????????????????????????????# | | ?????????????????????????????????????? | | ????????????????????????????????????# # | | ????????????????????????????????????########### ## | | ??????????????????????????????????????????????#+#? | | ?????????????????????????????????????????????????? | | ?????????????????????????????????????????????????? | | ?????????????????????????????????????????????????? | | ?????????????????????????????????????????????????? | | ?????????????????????????????????????????????????? | +----------------------------------------------------+ Best States ------------- Heat Dissipation 28 Energy Generation 19 Energy Capacity 430 Matter Stores 300 Matter Capacity 300 Sight Range 16 Terrain Scan Density 10 Armor Coverage 150 Core Shielding 20 Propulsion Shielding 33 Evasion (%) 50 Recoil Reduction 2 Item Schematics ----------------- None Robot Schematics ------------------ None Fabricated ------------ Nothing Alien Tech Used ----------------- None Achievements -------------- None Challenges ------------ None Game ------ Seed MiningManeuveringAutocannon Manual? 0 Play Time 00:21:01 Cumulative 2.3 hours Start 2020.11.25 @ 08:33:34 End 2020.11.25 @ 08:59:10 Sessions 1 Manual Loads 0 Difficulty Rogue Special Mode None Game No. 4 Rogue 4 Adventurer 0 Explorer 0 Win Type - Total 0 Types 0/0/0/0/0/0/0/0/0 Lore% 0 Gallery% 6 Achievement% 6 Wizard Run 0 Options --------- ASCII 0 Keyboard 0 Movement Mouse Keybinds 0 Fullscreen 0 Font 20/SmallcapsGlow Map View 113x50 Tactical HUD 0 Map Filters NONE Filters NONE Steam 1 RUN: 577b9063-2271-4f7c-ba7d-b53bfdd09dec